bitfinex/quotes_ETHUSD_20240922
["timestamp","ask_amount","ask_price","bid_price","bid_amount"]
[1727011681507,9.41890249,2586.8,2586.7,6.86592]
[1727011681824,6.98430036,2586.8,2586.7,6.86592]
[1727011683639,9.41890326,2586.8,2586.7,6.86592]
[1727011686229,6.98430036,2586.8,2586.7,6.86592]
[1727011686430,9.4189259,2586.8,2586.7,6.86592]
[1727011686630,9.41892858,2586.8,2586.7,6.86592]
[1727011686927,6.98430036,2586.8,2586.7,6.86592]
[1727011688293,6.98430036,2586.8,2586.7,3.86592]
[1727011688498,2.2568,2586.7,2586.4,3.86627]
[1727011688802,2.2568,2586.7,2586.5,3.86622]
[1727011688803,11.9520652,2586.6,2586.5,3.86622]
[1727011688997,8.59582931,2586.6,2586.5,3.86622]
[1727011689317,11.94635432,2586.6,2586.5,3.86622]
[1727011689520,10.31745133,2586.6,2586.5,3.86622]
[1727011690534,8.05388576,2586.6,2586.5,3.86622]
[1727011691631,10.31745133,2586.6,2586.5,3.86622]
[1727011691836,8.05388576,2586.6,2586.5,3.86622]
[1727011694203,10.27959553,2586.6,2586.5,3.86622]
[1727011694434,8.01602996,2586.6,2586.5,3.86622]
[1727011695141,10.85358224,2586.6,2586.5,3.86622]
[1727011695299,8.01602996,2586.6,2586.5,3.86622]
[1727011695726,10.85370788,2586.6,2586.5,3.86622]
[1727011695921,10.85326364,2586.6,2586.5,3.86622]
[1727011702388,8.01558204,2586.6,2586.5,3.86622]
[1727011703365,10.85276707,2586.6,2586.5,3.86622]
[1727011703566,10.85283429,2586.6,2586.4,3.86627]
[1727011703769,7.38144875,2586.5,2586.4,3.86627]
[1727011704069,5.10190305,2586.5,2586.4,3.86627]
[1727011704231,7.36500305,2586.5,2586.4,3.86627]
[1727011708926,7.36290955,2586.5,2586.4,3.86627]
[1727011713693,7.36300153,2586.5,2586.4,3.86627]
[1727011715491,9.79478131,2586.5,2586.4,3.86627]
[1727011716290,9.79486834,2586.5,2586.4,3.86627]
[1727011716496,7.36300153,2586.5,2586.4,3.86627]
[1727011716704,9.79488322,2586.5,2586.4,3.86627]
[1727011716905,7.36300153,2586.5,2586.4,3.86627]
[1727011718626,7.36345237,2586.5,2586.1,6.3534]
[1727011718933,2.026807,2586.2,2586.1,6.3534]
[1727011719102,4.2327911,2586.2,2586.1,6.3534]
[1727011719301,4.01506894,2586.2,2586.1,6.3534]
[1727011719524,2.2059841,2586.2,2586.1,6.3534]
[1727011719748,6.04203153,2586.2,2586.1,6.3534]
[1727011720344,4.01506894,2586.2,2586.1,6.3534]
[1727011721801,6.04228424,2586.2,2586.1,6.3534]
[1727011721998,4.01506894,2586.2,2586.1,6.3534]
[1727011723425,4.01596096,2586.2,2586.1,6.3534]
[1727011728452,4.01712264,2586.2,2586.1,6.3534]
[1727011730533,6.45155803,2586.2,2586.1,3.8668]
[1727011732233,4.01712264,2586.2,2586.1,3.8668]
[1727011733369,4.93205115,2586.2,2586.1,3.8668]
[1727011734245,10.03947129,2586.2,2586.1,3.8668]
[1727011734560,7.77590572,2586.2,2586.1,3.8668]
[1727011734873,9.12738501,2586.2,2586.1,3.8668]
[1727011735089,6.86381944,2586.2,2586.1,3.8668]
[1727011735252,9.12738501,2586.2,2586.1,3.8668]
[1727011735451,6.86381944,2586.2,2586.1,3.8668]
[1727011735651,9.12738501,2586.2,2586.1,3.8668]
[1727011735869,6.86381944,2586.2,2586.1,3.8668]
[1727011736268,9.12738501,2586.2,2586.1,3.8668]
[1727011736554,6.86381944,2586.2,2586.1,3.8668]
[1727011736753,9.12738501,2586.2,2586.1,3.8668]
[1727011737188,6.86381944,2586.2,2586.1,3.8668]
[1727011737579,9.12738501,2586.2,2586.1,3.8668]
[1727011737766,6.86381944,2586.2,2586.1,3.8668]
[1727011738177,9.12738501,2586.2,2586.1,3.8668]
[1727011738389,6.86381944,2586.2,2586.1,3.8668]
[1727011738767,9.12738501,2586.2,2586.1,3.8668]
[1727011738983,6.86381944,2586.2,2586.1,3.8668]
[1727011739355,9.12738501,2586.2,2586.1,3.8668]
[1727011739568,6.86381944,2586.2,2586.1,3.8668]
[1727011739982,9.12738501,2586.2,2586.1,3.8668]
[1727011740193,6.86381944,2586.2,2586.1,3.8668]
[1727011740556,9.12738501,2586.2,2586.1,3.8668]
[1727011740881,6.86381944,2586.2,2586.1,3.8668]
[1727011741297,9.12738501,2586.2,2586.1,3.8668]
[1727011741596,6.86381944,2586.2,2586.1,3.8668]
[1727011741954,9.12738501,2586.2,2586.1,3.8668]
[1727011742156,6.86381944,2586.2,2586.1,3.8668]
[1727011742607,9.12738501,2586.2,2586.1,3.8668]
[1727011742793,6.86381944,2586.2,2586.1,3.8668]
[1727011743194,9.12738501,2586.2,2586.1,3.8668]
[1727011743391,6.86381944,2586.2,2586.1,3.8668]
[1727011743820,9.12738501,2586.2,2586.1,3.8668]
[1727011744013,6.86381944,2586.2,2586.1,3.8668]
[1727011744547,9.12738501,2586.2,2586.1,3.8668]
[1727011744682,6.86381944,2586.2,2586.1,3.8668]
[1727011745123,9.12738501,2586.2,2586.1,3.8668]
[1727011745422,6.86381944,2586.2,2586.1,3.8668]
[1727011745920,9.12738501,2586.2,2586.1,3.8668]
[1727011746108,6.86381944,2586.2,2586.1,3.8668]
[1727011746485,9.12988533,2586.2,2586.1,3.8668]
[1727011746687,6.86631976,2586.2,2586.1,3.8668]
[1727011747221,9.12988533,2586.2,2586.1,3.8668]
[1727011747418,6.86631976,2586.2,2586.1,3.8668]
[1727011747796,9.12988533,2586.2,2586.1,3.8668]
[1727011747997,6.86631976,2586.2,2586.1,3.8668]
[1727011748494,9.12988533,2586.2,2586.1,3.8668]
[1727011748699,6.86631976,2586.2,2586.1,3.8668]
[1727011749207,9.12988533,2586.2,2586.1,3.8668]
[1727011749515,8.11540448,2586.2,2586.1,3.8668]
[1727011749723,9.92221131,2586.2,2586.1,3.8668]
[1727011749886,12.7675145,2586.2,2586.1,3.8668]
[1727011750078,12.76753602,2586.2,2586.1,3.8668]
[1727011750710,12.76745727,2586.2,2586.1,3.8668]
[1727011750923,12.76743373,2586.2,2586.1,3.8668]
[1727011751126,9.92221131,2586.2,2586.1,3.8668]
[1727011751331,8.5950256,2586.2,2586.1,3.8668]
[1727011751486,9.9221145,2586.2,2586.1,3.8668]
[1727011752118,10.37872418,2586.2,2586.1,3.8668]
[1727011752283,6.86607389,2586.2,2586.1,3.8668]
[1727011752483,9.12963946,2586.2,2586.1,3.8668]
[1727011752732,6.86607389,2586.2,2586.1,3.8668]
[1727011753188,9.12963946,2586.2,2586.1,3.8668]
[1727011753529,6.86607389,2586.2,2586.1,3.8668]
[1727011753898,9.12963946,2586.2,2586.1,3.8668]
[1727011754104,6.86607389,2586.2,2586.1,3.8668]
[1727011754489,9.12963946,2586.2,2586.1,3.8668]
[1727011754725,6.86607389,2586.2,2586.1,3.8668]
[1727011755100,9.12963946,2586.2,2586.1,3.8668]
[1727011755291,6.86607389,2586.2,2586.1,3.8668]
[1727011755526,9.12963946,2586.2,2586.1,3.8668]
[1727011755694,6.86607389,2586.2,2586.1,3.8668]
[1727011755899,9.12963946,2586.2,2586.1,3.8668]
[1727011756099,6.8657618,2586.2,2586.1,3.8668]
[1727011756324,6.8656525,2586.2,2586.1,3.8668]
[1727011756498,9.12921807,2586.2,2586.1,3.8668]
[1727011756705,6.8656525,2586.2,2586.1,3.8668]
[1727011757332,9.12921807,2586.2,2586.1,3.8668]
[1727011757495,6.8656525,2586.2,2586.1,3.8668]
[1727011757894,9.12921807,2586.2,2586.1,3.8668]
[1727011758127,6.8656525,2586.2,2586.1,3.8668]
[1727011758332,4.02077516,2586.2,2586.1,3.8668]
[1727011758497,6.28434073,2586.2,2586.1,3.8668]
[1727011759345,9.12921807,2586.2,2586.1,3.8668]
[1727011759537,4.02077516,2586.2,2586.1,3.8668]
[1727011759924,6.45896824,2586.2,2586.1,6.167]
[1727011760139,4.02077516,2586.2,2586.1,6.167]
[1727011761098,4.01988509,2586.2,2586.1,6.167]
[1727011761306,6.05108302,2586.2,2586.1,9.84528783]
[1727011761985,6.05108302,2586.2,2586.1,10.18768767]
[1727011762153,4.01988509,2586.2,2586.1,10.18768767]
[1727011762358,4.01988509,2586.2,2586.1,9.84528783]
[1727011763173,5.64444267,2586.2,2586.1,9.84528783]
[1727011765172,5.64444267,2586.2,2586.1,9.167]
[1727011765980,3.43364242,2586.2,2586.1,9.167]
[1727011766187,3.83371361,2586.2,2586.1,9.167]
[1727011766381,5.64279845,2586.2,2586.1,9.167]
[1727011768248,4.01824087,2586.2,2586.1,9.167]
[1727011768466,5.64279845,2586.2,2586.1,9.167]
[1727011768852,4.01824087,2586.2,2586.1,9.167]
[1727011769092,3.42644955,2586.2,2586.1,9.167]
[1727011769527,3.97572799,2586.2,2586.1,9.167]
[1727011769738,5.60028557,2586.2,2586.1,9.167]
[1727011769895,5.5988816,2586.2,2586.1,9.167]
[1727011771127,5.59783868,2586.2,2586.1,9.167]
[1727011775839,5.59730659,2586.2,2586.1,9.167]
[1727011776130,3.97415298,2586.2,2586.1,9.167]
[1727011777031,5.59730659,2586.2,2586.1,9.167]
[1727011780101,3.97415298,2586.2,2586.1,9.167]
[1727011782133,3.83073463,2586.2,2586.1,9.167]
[1727011782336,5.59730659,2586.2,2586.1,9.167]
[1727011782934,5.59730659,2586.2,2586.1,6.8668]
[1727011783139,9.23157873,2586.2,2586.1,6.8668]
[1727011783367,4.73671047,2586.2,2586.1,3.8668]
[1727011783521,9.63723239,2586.2,2586.1,3.8668]
[1727011783921,9.63760488,2586.2,2586.1,3.8668]
[1727011784122,7.20331047,2586.2,2586.1,3.8668]
[1727011784558,9.63753654,2586.2,2586.1,3.8668]
[1727011785560,4.99572945,2586.2,2586.1,3.8668]
[1727011785758,9.63767017,2586.2,2586.1,3.8668]
[1727011790594,11.84488849,2586.2,2586.1,3.8668]
[1727011790745,9.63732641,2586.2,2586.1,3.8668]
[1727011795864,9.63730373,2586.2,2586.1,3.8668]
[1727011798363,2.4666,2586.1,2585.9,3.86707]
[1727011798562,2.4666,2585.9,2585.7,3.86732]
[1727011798764,6.44078609,2585.8,2585.7,3.86732]
[1727011801502,8.87365623,2585.8,2585.7,3.86732]
[1727011801789,6.44078609,2585.8,2585.7,3.86732]
[1727011802083,3.97418609,2585.8,2585.7,3.86732]
[1727011802663,3.97418609,2585.8,2585.6,7.7731457]
[1727011802664,9.12869834,2585.8,2585.6,7.7731457]
[1727011802870,10.87541831,2585.7,2585.6,3.9056057]
[1727011803067,6.23498609,2585.7,2585.6,3.9056057]
[1727011804091,9.07463272,2585.7,2585.6,0.0381057]
[1727011804389,6.23498609,2585.7,2585.6,0.0381057]
[1727011804592,6.23498609,2585.7,2585.6,3.9056757]
[1727011804593,7.23586945,2585.7,2585.6,3.9056757]
[1727011804954,9.66668327,2585.7,2585.6,3.9056757]
[1727011806290,7.23586945,2585.7,2585.6,3.9056757]
[1727011807798,9.66668327,2585.7,2585.6,3.9056757]
[1727011808459,5.02825532,2585.7,2585.6,3.9056757]
[1727011808661,6.89257543,2585.7,2585.6,3.9056757]
[1727011808861,8.65914739,2585.7,2585.6,3.9056757]
[1727011810201,6.23026459,2585.7,2585.6,3.9056757]
[1727011813702,6.22916726,2585.7,2585.6,3.9056757]
[1727011815529,6.22916726,2585.7,2585.5,3.86763]
[1727011815735,4.59128399,2585.6,2585.5,3.86763]
[1727011815940,4.59128399,2585.6,2585.4,7.73563]
[1727011816231,8.23516011,2585.5,2585.4,3.86778]
[1727011816992,6.21195807,2585.5,2585.1,3.86821]
[1727011817222,0.62291673,2585.6,2585.1,3.86821]
[1727011817223,3.87930865,2585.3,2585.2,3.86817]
[1727011817404,7.19731832,2585.3,2585.2,3.86817]
[1727011819304,2.3289,2585.2,2584.9,3.86862]
[1727011819544,4.3517064,2585.0,2584.9,3.86862]
[1727011819744,8.30286447,2585.0,2584.9,3.86862]
[1727011819918,9.37593516,2585.0,2584.9,3.86862]
[1727011823086,9.37359869,2585.0,2584.9,3.86862]
[1727011824142,9.37359869,2585.0,2584.8,3.9067757]
[1727011824338,5.56697956,2584.9,2584.8,3.9067757]
[1727011825241,5.56691659,2584.9,2584.8,0.0381057]
[1727011825431,9.16671949,2584.9,2584.8,0.0381057]
[1727011825773,7.1447919,2584.9,2584.8,0.0381057]
[1727011826765,9.16633538,2584.9,2584.8,0.0381057]
[1727011827266,9.16626657,2584.9,2584.8,0.0381057]
[1727011827763,9.16576158,2584.9,2584.8,0.0381057]
[1727011828267,9.16577057,2584.9,2584.8,0.0381057]
[1727011829025,7.14428511,2584.9,2584.8,0.0381057]
[1727011830636,2.3289,2584.8,2584.4,3.86923]
[1727011830932,6.68495169,2584.7,2584.5,3.86921]
[1727011831071,2.73575807,2584.7,2584.6,3.86907]
[1727011831266,3.60860084,2584.7,2584.6,3.86907]
[1727011831465,6.66355055,2584.7,2584.6,3.86907]
[1727011831689,4.64222099,2584.7,2584.6,3.86907]
[1727011831903,6.25896841,2584.7,2584.6,3.86907]
[1727011832077,4.64222099,2584.7,2584.6,3.86907]
[1727011832606,4.64166788,2584.7,2584.6,3.86907]
[1727011832763,6.2584153,2584.7,2584.6,3.86907]
[1727011833409,4.64166788,2584.7,2584.6,3.86907]
[1727011834182,6.2584153,2584.7,2584.6,3.86907]
[1727011834915,4.10850678,2584.7,2584.6,3.86907]
[1727011835086,4.10849412,2584.7,2584.6,3.86907]
[1727011836266,2.89598233,2584.7,2584.6,3.86907]
[1727011836481,4.64144378,2584.7,2584.6,3.86907]
[1727011836671,4.10865557,2584.7,2584.6,3.86907]
[1727011837381,5.53288692,2584.7,2584.6,3.86907]
[1727011837584,6.97097798,2584.7,2584.6,3.86907]
[1727011837787,8.99228473,2584.7,2584.6,3.86907]
[1727011838107,6.97097798,2584.7,2584.5,3.86909]
[1727011838403,6.64644434,2584.6,2584.5,3.86909]
[1727011839771,6.64644434,2584.6,2584.1,6.33857]
[1727011839772,6.64644434,2584.6,2584.1,3.86971]
[1727011839980,1.61763046,2584.3,2584.2,3.86966]
[1727011840180,4.20372455,2584.3,2584.2,3.86966]
[1727011840388,5.0437692,2584.3,2584.2,3.86966]
[1727011840601,6.78939119,2584.3,2584.2,3.86966]
[1727011841006,4.76769412,2584.3,2584.2,3.86966]
[1727011841524,6.38555207,2584.3,2584.2,3.86966]
[1727011841729,6.3855516,2584.3,2584.2,3.86966]
[1727011841933,4.76769412,2584.3,2584.2,3.86966]
[1727011842131,6.38554028,2584.3,2584.2,3.86966]
[1727011842292,6.38570856,2584.3,2584.2,3.86966]
[1727011842486,6.78939119,2584.3,2584.2,3.86966]
[1727011843305,9.24049119,2584.3,2584.2,3.86966]
[1727011844040,9.24049119,2584.3,2584.0,0.0381057]
[1727011844041,2.4511,2584.2,2584.0,0.0381057]
[1727011844286,2.4511,2584.2,2583.6,3.87048]
[1727011844287,2.4511,2584.0,2583.6,3.87048]
[1727011844442,5.93761514,2584.2,2583.5,3.87069]
[1727011844443,2.02332552,2583.7,2583.5,3.87069]
[1727011844628,8.40207499,2583.6,2583.5,3.87069]
[1727011844841,9.70345521,2583.6,2583.5,3.87069]
[1727011845146,9.29820818,2583.6,2583.5,3.87069]
[1727011845442,6.84710818,2583.6,2583.5,3.87069]
[1727011845742,2.18202748,2583.6,2583.5,6.33639]
[1727011845944,0.80896901,2583.6,2583.5,6.33639]
[1727011846501,2.1181855,2583.6,2583.5,6.33639]
[1727011846744,2.99099649,2583.6,2583.5,6.33639]
[1727011847049,0.80896901,2583.6,2583.5,6.33639]
[1727011847346,0.80896901,2583.8,2583.7,3.87041]
[1727011847547,0.80866617,2583.8,2583.7,3.87041]
[1727011848058,2.99074447,2583.8,2583.7,3.87041]
[1727011848966,2.11791315,2583.8,2583.7,3.87041]
[1727011849174,0.80866617,2583.8,2583.7,3.87041]
[1727011849328,2.11791315,2583.8,2583.7,3.87041]
[1727011850143,2.99074447,2583.8,2583.7,3.87041]
[1727011850345,0.80866617,2583.9,2583.8,3.87026]
[1727011850531,2.11775345,2583.9,2583.8,3.87026]
[1727011850730,2.9904783,2583.9,2583.8,3.87026]
[1727011850931,2.11775345,2583.9,2583.8,3.87026]
[1727011851533,2.9904783,2583.9,2583.8,3.87026]
[1727011851857,2.53818072,2583.9,2583.8,3.87026]
[1727011852024,3.41092585,2583.9,2583.8,3.87026]
[1727011852936,2.60225968,2583.9,2583.8,3.87026]
[1727011853336,1.22912655,2583.9,2583.8,3.87026]
[1727011854025,3.41098937,2583.9,2583.8,3.87026]
[1727011854222,3.81555178,2583.9,2583.8,3.87026]
[1727011854532,4.084747,2583.9,2583.8,3.87026]
[1727011854861,6.26660982,2583.9,2583.8,3.87026]
[1727011856330,6.79963565,2583.9,2583.8,3.87026]
[1727011856561,8.41872279,2583.9,2583.8,3.87026]
[1727011856761,6.8006443,2583.9,2583.8,3.87026]
[1727011856979,6.8006443,2583.9,2583.5,2.4657]
[1727011856980,6.8006443,2583.9,2583.5,7.74126]
[1727011857136,1.61802113,2583.7,2583.6,3.87056]
[1727011857339,3.92914744,2583.7,2583.6,3.87056]
[1727011857657,5.54722864,2583.7,2583.6,3.87056]
[1727011857857,3.92914744,2583.7,2583.6,3.87056]
[1727011858574,4.23763504,2583.7,2583.6,3.87056]
[1727011858782,5.06150301,2583.7,2583.6,3.87056]
[1727011859073,6.67972793,2583.7,2583.6,3.87056]
[1727011859447,5.06150301,2583.7,2583.6,3.87056]
[1727011859653,7.08389984,2583.7,2583.6,3.87056]
[1727011860033,9.43519984,2583.7,2583.6,3.87056]
[1727011860637,5.06150301,2583.7,2583.6,3.87056]
[1727011860868,6.68140021,2583.7,2583.6,3.87056]
[1727011861079,5.54904464,2583.7,2583.6,3.87056]
[1727011861263,2.49236679,2583.7,2583.6,3.87056]
[1727011861467,3.80276867,2583.7,2583.6,3.87056]
[1727011862141,2.49236679,2583.7,2583.6,3.87056]
[1727011862345,3.80276867,2583.7,2583.6,3.87056]
[1727011862985,4.79514883,2583.7,2583.6,3.87056]
[1727011863136,6.5414248,2583.7,2583.6,3.87056]
[1727011864382,6.94611619,2583.7,2583.6,3.87056]
[1727011865286,2.3513,2583.6,2583.5,3.87057]
[1727011865575,6.2815791,2583.6,2583.4,3.87078]
[1727011865788,4.65767503,2583.5,2583.4,3.87078]
[1727011866082,4.65767503,2583.5,2583.3,3.8709]
[1727011866282,8.30717464,2583.4,2583.3,3.8709]
[1727011866438,6.2815791,2583.4,2583.2,0.0381057]
[1727011866645,4.37662211,2583.4,2583.3,3.87086]
[1727011866896,5.27493182,2583.4,2583.3,3.87086]
[1727011867417,5.27493182,2583.4,2583.2,3.9092657]
[1727011867418,7.01126397,2583.4,2583.2,3.9091857]
[1727011867708,5.9319931,2583.3,2583.2,6.2134557]
[1727011867910,2.9803978,2583.3,2583.2,6.2134557]
[1727011868220,1.62020612,2583.5,2583.4,3.87086]
[1727011868221,0.80998262,2583.5,2583.4,3.87086]
[1727011868515,0.80998262,2583.6,2583.5,3.87071]
[1727011868673,2.02524577,2584.0,2583.7,3.87041]
[1727011868674,0.80998262,2583.8,2583.7,3.87041]
[1727011868878,1.62020612,2584.1,2584.0,3.86996]
[1727011868879,0.80998262,2584.1,2584.0,3.86996]
[1727011869083,2.97765177,2584.1,2584.0,3.86996]
[1727011869284,0.80998262,2584.2,2584.1,3.86981]
[1727011869483,1.67695342,2584.2,2584.1,3.86981]
[1727011869673,2.16779055,2584.2,2584.1,3.86981]
[1727011869892,2.08212669,2584.2,2584.1,3.86981]
[1727011870096,3.38280102,2584.2,2584.1,3.86981]
[1727011870511,3.38273952,2584.2,2584.1,3.86981]
[1727011871608,3.38285794,2584.2,2584.1,3.86981]
[1727011871921,3.38285794,2584.2,2584.1,6.17411]
[1727011873403,2.9778898,2584.2,2584.1,6.17411]
[1727011873585,1.21506739,2584.3,2584.2,3.86966]
[1727011873586,0.81009925,2584.3,2584.2,3.86966]
[1727011874466,2.11113052,2584.3,2584.2,3.86966]
[1727011875237,2.9784847,2584.3,2584.2,3.86966]
[1727011875781,0.86735418,2584.3,2584.2,3.86966]
[1727011876067,0.81009925,2584.4,2584.3,3.86951]
[1727011876271,2.1110657,2584.4,2584.3,3.86951]
[1727011876474,2.97818461,2584.4,2584.3,3.86951]
[1727011877139,2.11095047,2584.4,2584.3,3.86951]
[1727011877347,0.86723414,2584.4,2584.3,6.17381]
[1727011877645,0.81009925,2584.5,2584.4,3.86937]
[1727011877840,1.67724649,2584.5,2584.4,3.86937]
[1727011878045,2.97796541,2584.5,2584.4,3.86937]
[1727011878253,2.16786616,2584.5,2584.4,3.86937]
[1727011878455,2.97766691,2584.5,2584.4,3.86937]
[1727011878771,2.97756242,2584.5,2584.4,3.86937]
[1727011879285,2.11045775,2584.5,2584.4,3.86937]
[1727011880176,2.97756242,2584.5,2584.4,3.86937]
[1727011880981,2.87756242,2584.5,2584.4,3.86937]
[1727011881181,2.01045775,2584.5,2584.4,3.86937]
[1727011883256,2.08217206,2584.6,2584.4,3.86937]
[1727011883257,1.21506739,2584.7,2584.6,3.86907]
[1727011883465,1.21506739,2584.8,2584.7,3.86892]
[1727011883656,2.08150319,2584.9,2584.8,3.86877]
[1727011883977,2.16607082,2584.9,2584.8,3.86877]
[1727011884187,3.3802674,2584.9,2584.8,3.86877]
[1727011884352,2.51383907,2584.9,2584.8,3.86877]
[1727011884555,3.3802674,2584.9,2584.8,3.86877]
[1727011885785,2.51383907,2584.9,2584.8,3.86877]
[1727011886080,2.16607082,2584.9,2584.8,6.25107]
[1727011886377,1.21419658,2585.2,2585.1,3.86832]
[1727011886552,1.81921197,2585.2,2585.1,3.86832]
[1727011886756,3.37838298,2585.2,2585.1,3.86832]
[1727011886972,0.86567456,2585.2,2585.1,3.86832]
[1727011887295,1.62020612,2585.5,2585.0,3.86847]
[1727011887296,1.21419658,2585.5,2585.3,6.25032]
[1727011887446,1.21419658,2585.5,2585.4,3.86787]
[1727011887763,2.51201217,2585.5,2585.4,3.86787]
[1727011887966,3.37721998,2585.5,2585.4,3.86787]
[1727011888167,3.89362842,2585.5,2585.4,3.86787]
[1727011888380,1.62020612,2585.6,2585.5,3.86772]
[1727011888613,4.42732306,2585.8,2585.6,3.86757]
[1727011888885,4.42732306,2585.8,2585.7,3.86742]
[1727011889074,6.98361816,2585.8,2585.6,3.86757]
[1727011889442,5.9121528,2585.7,2585.6,3.86757]
[1727011890297,5.50763819,2585.7,2585.6,3.86757]
[1727011891658,8.1635528,2585.7,2585.6,3.86757]
[1727011891872,9.29095636,2585.7,2585.6,3.86757]
[1727011892051,9.28986743,2585.7,2585.6,3.86757]
[1727011892384,9.28986743,2585.7,2585.5,3.86764]
[1727011892385,2.2514,2585.6,2585.5,3.86764]
[1727011892549,8.16224525,2585.6,2585.5,3.86764]
[1727011892949,8.12278863,2585.6,2585.5,3.86764]
[1727011893176,9.11633336,2585.6,2585.5,3.86764]
[1727011893819,7.09753555,2585.6,2585.5,7.73528]
[1727011894428,9.11633336,2585.6,2585.3,3.86791]
[1727011894592,5.4673858,2585.5,2585.4,3.86776]
[1727011894794,6.54049863,2585.5,2585.4,3.86776]
[1727011896117,6.39049863,2585.5,2585.4,3.86776]
[1727011897614,4.77570365,2585.5,2585.4,3.86776]
[1727011897819,3.65030073,2585.5,2585.4,3.86776]
[1727011898015,3.13139106,2585.5,2585.4,3.86776]
[1727011898582,1.92049491,2585.5,2585.4,3.86776]
[1727011900026,2.72761785,2585.5,2585.4,3.86776]
[1727011900478,1.65450502,2585.5,2585.4,3.86776]
[1727011901203,0.80712294,2585.5,2585.4,3.86776]
[1727011901791,4.53617823,2585.5,2585.4,3.86776]
[1727011902202,5.01975256,2585.5,2585.4,3.86776]
[1727011902595,4.53591775,2585.5,2585.4,3.86776]
[1727011902813,4.53589981,2585.5,2585.4,3.86776]
[1727011903023,5.01966688,2585.5,2585.4,3.86776]
[1727011903407,5.88490469,2585.5,2585.4,3.86776]
[1727011903715,2.4779,2585.4,2585.3,3.86791]
[1727011903900,6.63446186,2585.4,2585.3,3.86791]
[1727011904246,6.63446186,2585.4,2585.3,3.86793]
[1727011904407,5.01966688,2585.4,2585.3,3.86793]
[1727011904616,7.42506578,2585.4,2585.3,3.86793]
[1727011904806,7.82786522,2585.4,2585.3,3.86793]
[1727011905129,5.80994897,2585.4,2585.3,3.86793]
[1727011905506,7.42547082,2585.4,2585.3,3.86793]
[1727011905833,5.80994897,2585.4,2585.3,3.86793]
[1727011906034,8.68689306,2585.4,2585.3,3.86793]
[1727011906194,8.68685664,2585.4,2585.3,3.86793]
[1727011906599,7.07137165,2585.4,2585.3,3.86793]
[1727011906796,8.68698949,2585.4,2585.3,3.86793]
[1727011907125,6.2241833,2585.4,2585.3,3.86793]
[1727011907330,8.68080311,2585.4,2585.3,3.86793]
[1727011907552,8.68080311,2585.4,2585.2,3.86816]
[1727011907553,7.06518485,2585.4,2585.2,3.86816]
[1727011907727,6.523617,2585.3,2585.2,3.86807]
[1727011908347,4.50352124,2585.3,2585.0,3.86835]
[1727011908530,4.50352124,2585.3,2584.8,3.86871]
[1727011908531,8.29556474,2585.2,2584.9,3.86854]
[1727011908706,1.61657427,2585.0,2584.9,3.86854]
[1727011908908,1.61657427,2585.0,2584.8,3.86871]
[1727011908909,2.4779,2584.9,2584.8,3.86868]
[1727011909104,6.27490276,2584.9,2584.8,3.86868]
[1727011909308,8.29556474,2584.9,2584.8,3.86868]
[1727011909608,6.27490276,2584.9,2584.8,3.86868]
[1727011909808,7.19448007,2584.9,2584.8,3.86868]
[1727011910013,7.19448007,2584.9,2584.7,3.86884]
[1727011910237,5.81848538,2584.8,2584.7,3.86884]
[1727011910545,3.79700276,2584.8,2584.7,3.86884]
[1727011911045,5.41457632,2584.8,2584.7,3.86884]
[1727011911244,8.51941257,2584.8,2584.7,3.86884]
[1727011911406,4.88035639,2584.8,2584.7,3.86884]
[1727011912331,6.90183901,2584.8,2584.7,3.86884]
[1727011913202,6.90183901,2584.8,2584.6,3.86905]
[1727011913405,5.81848538,2584.7,2584.6,3.86905]
[1727011913653,7.09076072,2584.7,2584.6,3.86905]
[1727011914202,7.09076072,2584.7,2584.6,6.12355]
[1727011914203,3.79700276,2584.7,2584.6,6.12355]
[1727011914416,3.72388299,2584.7,2584.6,6.12355]
[1727011914719,3.31848581,2584.7,2584.6,6.12355]
[1727011914908,5.41178545,2584.7,2584.6,6.12355]
[1727011915340,3.72390732,2584.7,2584.6,6.12355]
[1727011916405,3.79040634,2584.7,2584.6,6.12355]
[1727011916605,4.71952074,2584.7,2584.6,3.86905]
[1727011916805,4.38015529,2584.7,2584.5,3.86921]
[1727011917051,6.23115231,2584.6,2584.5,3.86921]
[1727011918948,6.23152219,2584.6,2584.5,3.86921]
[1727011919843,3.79843081,2584.6,2584.5,3.86921]
[1727011920027,4.72754548,2584.6,2584.5,3.86921]
[1727011920233,7.16063686,2584.6,2584.5,3.86921]
[1727011920624,4.72754548,2584.6,2584.5,3.86921]
[1727011920962,4.72754548,2584.6,2584.0,2.2657]
[1727011920963,4.72754548,2584.6,2584.3,3.86945]
[1727011921248,6.23146858,2584.5,2584.3,3.86945]
[1727011921434,6.9475269,2584.4,2584.2,7.73917]
[1727011921638,3.79843081,2584.3,2584.2,3.86958]
[1727011923666,3.79843081,2584.3,2584.0,3.86996]
[1727011923667,2.4111,2584.2,2584.0,3.86996]
[1727011923829,2.11052835,2584.1,2584.0,3.86996]
[1727011924161,4.66258041,2584.1,2584.0,3.86996]
[1727011924858,4.66113631,2584.1,2584.0,3.86996]
[1727011925064,7.66113631,2584.1,2583.9,3.86999]
[1727011925226,3.79698671,2584.0,2583.9,3.86999]
[1727011926639,3.79698671,2584.0,2583.7,3.87029]
[1727011926823,4.43565665,2583.8,2583.7,3.87029]
[1727011927040,5.82154336,2583.8,2583.7,3.87029]
[1727011927244,3.79698671,2583.8,2583.7,3.87029]
[1727011927466,5.41604212,2583.8,2583.7,3.87029]
[1727011929566,5.41248718,2583.8,2583.7,3.87029]
[1727011929772,6.51909469,2583.8,2583.7,3.87029]
[1727011930424,6.51909469,2583.8,2583.6,3.87056]
[1727011930629,3.31867195,2583.7,2583.6,3.87056]
[1727011931077,3.78946895,2583.7,2583.5,7.74134]
[1727011931242,2.91405948,2583.6,2583.5,3.87064]
[1727011931433,2.10552931,2583.6,2583.5,3.87064]
[1727011931629,1.26331759,2583.6,2583.5,3.87064]
[1727011931832,2.0718242,2583.6,2583.5,3.87064]
[1727011932030,2.47618841,2583.6,2583.5,3.87064]
[1727011932268,1.65056798,2583.6,2583.5,3.87064]
[1727011932573,1.65056798,2583.6,2583.2,0.0381057]
[1727011932574,4.63456172,2583.6,2583.2,3.9091557]
[1727011932876,0.80841226,2583.3,2583.2,3.9091557]
[1727011933028,3.31814771,2583.4,2583.2,3.9091557]